bitfinex/quotes_SOLUSD_20250917
["timestamp","ask_amount","ask_price","bid_price","bid_amount"]
[1758125592864,39.77653308,233.29,233.22,13.59559401]
[1758125593065,3.74387243,233.28,233.22,13.59559401]
[1758125593480,3.74387243,233.27,233.22,13.59559401]
[1758125593680,4.2867264,233.28,233.2,3.74387243]
[1758125593681,3.74387243,233.26,233.2,13.59559401]
[1758125593864,34.7,233.25,233.2,13.59559401]
[1758125594071,0.71,233.31,233.23,3.74387243]
[1758125594276,12.87,233.43,233.19,15.00907845]
[1758125594277,34.7,233.3,233.27,17.33946644]
[1758125594482,31.34,233.29,233.27,17.98946644]
[1758125594792,31.34,233.29,233.27,14.24559401]
[1758125594966,31.34,233.29,233.27,17.98946644]
[1758125595468,31.34,233.29,233.27,14.24559401]
[1758125596277,31.34,233.29,233.27,13.59559401]
[1758125596469,31.34,233.29,233.25,0.65]
[1758125596672,31.34,233.29,233.27,13.59559401]
[1758125597191,31.34,233.29,233.25,8.68099463]
[1758125597387,31.34,233.29,233.27,13.59559401]
[1758125597800,31.34,233.29,233.27,3.74387243]
[1758125598090,31.34,233.29,233.28,14.24559401]
[1758125598501,34.66,233.29,233.28,14.24559401]
[1758125599683,34.66,233.29,233.28,18.53228811]
[1758125600286,34.66,233.29,233.28,13.59559401]
[1758125600604,38.40387243,233.29,233.28,13.59559401]
[1758125600775,39.11387243,233.29,233.28,13.59559401]
[1758125601393,34.66,233.29,233.28,13.59559401]
[1758125602091,26.0,233.32,233.29,13.59559401]
[1758125602301,34.6,233.31,233.29,14.24559401]
[1758125602794,26.0,233.28,233.21,13.59559401]
[1758125602970,3.74387243,233.24,233.21,13.59559401]
[1758125603297,34.6,233.27,233.21,17.88356401]
[1758125603298,34.64,233.23,233.21,17.88356401]
[1758125603491,34.64,233.22,233.21,17.88356401]
[1758125604395,34.64,233.22,233.19,4.28818804]
[1758125604693,34.64,233.22,233.2,14.24559401]
[1758125605501,34.64,233.22,233.21,4.28798078]
[1758125606802,34.64,233.22,233.21,4.93798078]
[1758125606986,34.64,233.22,233.21,8.68185321]
[1758125607180,34.6,233.23,233.21,8.68185321]
[1758125607376,34.6,233.23,233.22,13.59559401]
[1758125609384,34.6,233.23,233.21,13.59559401]
[1758125610806,34.6,233.23,233.22,17.88339093]
[1758125611010,34.6,233.23,233.22,18.53339093]
[1758125611313,34.6,233.23,233.22,13.59559401]
[1758125611678,37.74588835,233.23,233.22,13.59559401]
[1758125611888,37.74588835,233.23,233.15,3.08588835]
[1758125611889,37.74588835,233.23,233.17,13.59559401]
[1758125612287,37.74588835,233.23,233.14,2.43588835]
[1758125612288,0.71,233.22,233.14,0.65]
[1758125612491,2.43588835,233.21,233.12,17.44961517]
[1758125612684,0.71,233.2,233.12,19.6899605]
[1758125612881,34.54,233.19,233.13,16.68148236]
[1758125613115,34.54,233.19,233.15,13.59559401]
[1758125613417,34.52,233.18,233.17,16.03148236]
[1758125613712,34.52,233.18,233.17,16.68148236]
[1758125614477,34.52,233.18,233.17,20.32019874]
[1758125614683,34.52,233.18,233.17,17.88431039]
[1758125615584,34.52,233.18,233.17,13.59559401]
[1758125616812,34.52,233.18,233.17,17.88431039]
[1758125617486,34.52,233.18,233.17,21.02019874]
[1758125617683,28.43588835,233.23,233.17,21.02019874]
[1758125618005,34.46,233.22,233.18,13.59559401]
[1758125618413,0.7,233.22,233.18,13.59559401]
[1758125618588,34.46,233.21,233.18,17.88395163]
[1758125618903,34.46,233.21,233.2,16.03148236]
[1758125619108,34.46,233.21,233.2,16.73148236]
[1758125619787,34.46,233.22,233.2,16.73148236]
[1758125619986,34.46,233.22,233.21,16.03148236]
[1758125621388,10.7130257,233.37,233.22,13.59559401]
[1758125621591,0.7,233.3,233.25,13.59559401]
[1758125621791,35.12,233.29,233.25,13.59559401]
[1758125622505,0.7,233.31,233.27,13.59559401]
[1758125622687,35.12,233.3,233.27,13.59559401]
[1758125623187,0.7,233.29,233.27,13.59559401]
[1758125625902,34.42,233.3,233.27,13.59559401]
[1758125626306,35.12,233.3,233.27,13.59559401]
[1758125626991,35.12,233.3,233.26,13.59559401]
[1758125628223,35.12,233.3,233.26,14.29559401]
[1758125629027,0.73,233.36,233.29,16.03148236]
[1758125629206,26.0,233.32,233.29,14.29559401]
[1758125629405,34.34,233.31,233.29,14.29559401]
[1758125631329,0.03,233.36,233.31,13.59559401]
[1758125631526,0.03,233.36,233.35,18.46737071]
[1758125632012,0.03,233.36,233.35,19.16737071]
[1758125632620,0.03,233.36,233.35,13.59559401]
[1758125632802,0.03,233.36,233.35,16.03148236]
[1758125632994,0.73,233.36,233.35,13.59559401]
[1758125633194,0.73,233.36,233.32,13.59559401]
[1758125633407,0.7,233.35,233.32,13.59559401]
[1758125633718,0.7,233.34,233.32,13.59559401]
[1758125633917,34.62,233.33,233.32,13.59559401]
[1758125635612,39.60577551,233.33,233.31,2.23964504]
[1758125635816,0.7,233.32,233.31,2.23964504]
[1758125636123,35.3,233.32,233.31,2.23964504]
[1758125636425,35.3,233.32,233.31,15.83523905]
[1758125636727,0.69,233.34,233.32,13.59559401]
[1758125636891,34.62,233.33,233.32,16.03148236]
[1758125640407,34.62,233.33,233.32,20.31744155]
[1758125640797,34.62,233.33,233.32,21.02744155]
[1758125641000,34.62,233.33,233.32,16.03148236]
[1758125642234,34.62,233.33,233.32,20.31744155]
[1758125642637,34.62,233.33,233.29,0.71]
[1758125642808,35.31,233.33,233.27,13.59559401]
[1758125643137,35.31,233.33,233.31,13.59559401]
[1758125644638,38.90577905,233.33,233.31,13.59559401]
[1758125644838,0.69,233.32,233.29,13.59559401]
[1758125645117,0.69,233.31,233.29,13.59559401]
[1758125645317,34.48,233.3,233.29,13.59559401]
[1758125645522,35.17,233.3,233.27,13.59559401]
[1758125645705,0.69,233.29,233.27,13.59559401]
[1758125646023,0.69,233.28,233.25,13.59559401]
[1758125646226,26.0,233.31,233.25,13.59559401]
[1758125646227,35.17,233.27,233.25,13.59559401]
[1758125646412,0.69,233.26,233.25,13.59559401]
[1758125647024,0.69,233.26,233.22,2.43588835]
[1758125649347,4.97714254,233.26,233.2,13.59559401]
[1758125649636,0.69,233.25,233.21,2.43588835]
[1758125649811,4.28714254,233.26,233.21,2.43588835]
[1758125649812,35.15,233.24,233.21,2.43588835]
[1758125650705,34.46,233.24,233.23,16.03148236]
[1758125651320,34.46,233.24,233.23,13.59559401]
[1758125652942,34.46,233.24,233.23,16.73148236]
[1758125653432,34.46,233.24,233.23,16.03148236]
[1758125653845,34.46,233.24,233.23,13.59559401]
[1758125654815,41.8733176,233.24,233.17,2.29895174]
[1758125655022,41.8733176,233.24,233.09,12.88355414]
[1758125655023,26.0,233.16,233.09,12.88355414]
[1758125655214,28.43588835,233.12,233.09,12.88355414]
[1758125655430,2.43588835,233.12,233.09,12.88355414]
[1758125655743,3.12588835,233.12,233.02,2.43588835]
[1758125655941,38.14588835,233.12,233.02,2.43588835]
[1758125656122,38.14588835,233.12,233.03,2.43588835]
[1758125656515,39.19944536,233.12,233.02,2.43588835]
[1758125656715,8.48908159,233.12,233.03,13.59559401]
[1758125657245,6.05319324,233.12,233.01,2.73588835]
[1758125657536,36.76357763,233.12,233.07,2.43588835]
[1758125657716,36.07357763,233.12,233.08,13.59559401]
[1758125657915,26.0,233.14,233.08,16.03148236]
[1758125658132,26.0,233.14,233.03,10.72785607]
[1758125658133,0.69,233.12,233.03,10.72785607]
[1758125658317,65.21945957,233.12,233.05,17.88647514]
[1758125658515,39.21945957,233.12,233.04,0.7]
[1758125658739,26.0,233.09,233.05,13.09559401]
[1758125658910,2.43588835,233.1,233.05,13.09559401]
[1758125659116,35.02,233.09,233.05,17.38640786]
[1758125659318,35.02,233.09,233.05,20.52229621]
[1758125659522,2.43588835,233.09,233.05,18.08640786]
[1758125660017,0.69,233.16,233.06,0.7]
[1758125660318,2.43588835,233.12,233.06,0.7]
[1758125660743,26.0,233.09,233.08,4.2903724]
[1758125660932,61.0,233.09,233.08,4.2903724]
[1758125661127,26.0,233.09,233.08,4.2903724]
[1758125661439,35.0,233.09,233.08,4.2903724]
[1758125661745,28.43588835,233.12,233.08,4.3503724]
[1758125661930,34.98,233.09,233.08,4.3503724]
[1758125662325,34.98,233.09,233.08,0.06]
[1758125662526,37.41588835,233.09,233.08,0.06]
[1758125662726,2.43588835,233.09,233.08,0.06]
[1758125662927,37.39588835,233.09,233.08,0.06]
[1758125663448,2.43588835,233.09,233.08,0.06]
[1758125663756,34.96,233.09,233.08,14.35559401]
[1758125664055,2.43588835,233.11,233.09,13.59559401]
[1758125664230,34.94,233.1,233.09,14.29559401]
[1758125665044,34.92,233.1,233.09,14.29559401]
[1758125665529,34.92,233.1,233.09,18.58578234]
[1758125665726,2.43588835,233.13,233.09,18.58578234]
[1758125666051,26.0,233.13,233.11,13.59559401]
[1758125666362,0.03,233.14,233.11,14.29559401]
[1758125666523,34.9,233.12,233.1,13.59559401]
[1758125666726,34.9,233.11,233.1,14.29559401]
[1758125667453,34.9,233.11,233.1,18.5855983]
[1758125667634,34.9,233.11,233.1,17.8855983]
[1758125667833,34.88,233.11,233.1,17.8855983]
[1758125671262,34.88,233.11,233.1,18.5855983]
[1758125671443,34.84,233.11,233.1,29.31060902]
[1758125672555,34.84,233.11,233.1,28.61060902]
[1758125673541,12.88908939,233.28,233.1,68.07132015]
[1758125673748,1.07328465,233.27,233.16,15.15630514]
[1758125673945,11.58,233.21,233.16,15.15630514]
[1758125674148,1.61,233.17,233.16,14.29559401]
[1758125674344,0.03,233.17,233.16,15.85630514]
[1758125674636,0.03,233.17,233.16,20.14520546]
[1758125675468,0.03,233.17,233.16,29.29520546]
[1758125676457,30.58,233.22,233.19,13.59559401]
[1758125676759,30.58,233.22,233.21,15.15630514]
[1758125677162,0.67,233.28,233.22,13.59559401]
[1758125677362,35.28,233.27,233.25,13.59559401]
[1758125678052,0.67,233.26,233.22,13.59559401]
[1758125678257,0.67,233.25,233.22,13.59559401]
[1758125678463,0.67,233.25,233.24,13.59559401]
[1758125678854,0.67,233.25,233.22,13.59559401]
[1758125679073,0.67,233.24,233.15,13.58355414]
[1758125679246,0.67,233.24,233.18,13.59559401]
[1758125679737,2.23071113,233.23,233.16,13.59559401]
[1758125679941,1.56071113,233.21,233.16,13.59559401]
[1758125680141,0.67,233.2,233.16,13.59559401]
[1758125680448,0.67,233.22,233.2,13.59559401]
[1758125680663,35.22,233.21,233.2,13.59559401]
[1758125681071,35.89,233.21,233.11,10.78454121]
[1758125681254,0.67,233.2,233.15,13.59559401]
[1758125681444,0.67,233.19,233.15,13.59559401]
[1758125681645,0.67,233.18,233.15,1.56071113]
[1758125681872,35.22,233.17,233.15,1.56071113]
[1758125682263,0.67,233.16,233.13,13.59559401]
[1758125682577,35.22,233.15,233.13,17.88503115]
[1758125682784,0.67,233.14,233.13,17.88503115]
[1758125683881,35.22,233.15,233.13,17.88503115]
[1758125684057,0.67,233.2,233.15,13.59559401]
[1758125684257,35.16,233.19,233.17,13.59559401]
[1758125684464,35.83,233.19,233.17,13.59559401]
[1758125684847,0.67,233.19,233.17,13.59559401]
[1758125685046,35.16,233.18,233.17,13.59559401]
[1758125686169,0.67,233.21,233.19,13.59559401]
[1758125686359,35.14,233.2,233.19,13.59559401]
[1758125687054,35.14,233.2,233.11,4.34979653]
[1758125687055,26.0,233.17,233.11,4.34979653]
[1758125687375,35.1,233.16,233.12,13.59559401]
[1758125687569,2.23071113,233.19,233.12,15.15630514]
[1758125687570,0.67,233.19,233.12,15.15630514]
[1758125687770,0.67,233.19,233.14,15.15630514]
[1758125687771,35.14,233.15,233.14,15.15630514]
[1758125687941,26.0,233.18,233.14,15.15630514]
[1758125688147,35.14,233.17,233.15,17.88467829]
[1758125688349,0.67,233.21,233.16,1.56071113]
[1758125688543,35.14,233.2,233.18,1.56071113]
[1758125688743,30.0,233.19,233.18,15.15630514]
[1758125689162,35.12,233.19,233.18,15.15630514]
[1758125689563,0.67,233.21,233.18,19.44481007]
[1758125689772,35.12,233.2,233.18,19.44481007]
[1758125690070,0.03,233.22,233.19,13.59559401]
[1758125690274,35.1,233.21,233.19,13.59559401]
[1758125690654,35.1,233.21,233.18,4.28850493]
[1758125690863,35.77,233.21,233.18,4.28850493]
[1758125691065,35.1,233.21,233.18,4.28850493]
[1758125691473,35.1,233.21,233.18,5.84921606]
[1758125692050,0.03,233.22,233.16,1.56071113]
[1758125692385,35.08,233.21,233.18,13.59559401]
[1758125692552,35.12,233.2,233.18,13.59559401]
[1758125692752,26.03,233.22,233.18,13.59559401]
[1758125692978,35.14,233.19,233.18,13.59559401]
[1758125693182,35.14,233.19,233.18,1.56071113]
[1758125693378,35.14,233.19,233.17,1.56071113]
[1758125693885,35.14,233.19,233.17,5.84935717]
[1758125694486,35.14,233.19,233.18,13.59559401]
[1758125694657,35.1,233.19,233.18,15.85630514]
[1758125695808,0.03,233.22,233.18,15.85630514]
[1758125696080,35.08,233.2,233.19,4.98834855]
[1758125697052,0.03,233.22,233.2,13.59559401]
[1758125697257,35.06,233.21,233.2,13.59559401]
[1758125697574,35.06,233.21,233.2,14.30559401]
[1758125698384,35.06,233.21,233.2,15.86630514]
[1758125698584,0.03,233.22,233.21,17.88357479]
[1758125698785,35.05,233.22,233.21,20.15428592]
[1758125700201,0.03,233.22,233.21,20.15428592]
[1758125701793,0.03,233.22,233.21,19.44428592]
[1758125701992,35.01,233.22,233.21,19.44428592]
[1758125702776,35.01,233.22,233.21,13.59559401]
[1758125703094,35.68,233.22,233.21,13.59559401]
[1758125703863,35.68,233.22,233.17,1.62071113]
[1758125704171,0.66,233.21,233.17,0.06]
[1758125704794,35.62,233.2,233.17,0.06]
[1758125704982,35.62,233.2,233.17,13.65559401]
[1758125705285,0.66,233.19,233.17,13.65559401]
[1758125705490,0.66,233.18,233.17,0.06]
[1758125706494,35.6,233.18,233.17,0.06]
[1758125708477,39.88853246,233.18,233.17,0.06]
[1758125709395,41.44924359,233.18,233.17,0.06]
[1758125710492,26.0,233.15,233.14,0.06]
[1758125710670,62.42071113,233.15,233.14,0.06]
[1758125710985,63.08071113,233.15,233.14,0.06]
[1758125712280,61.52,233.15,233.14,0.06]
[1758125712569,0.66,233.18,233.14,1.62071113]
[1758125712772,34.82,233.17,233.16,1.56071113]
[1758125712990,64.82,233.17,233.16,1.56071113]
[1758125713592,34.84,233.17,233.16,1.56071113]
[1758125714197,26.0,233.2,233.16,1.56071113]
[1758125714405,34.82,233.19,233.18,13.59559401]
[1758125714594,34.82,233.19,233.18,19.4448376]
[1758125714798,35.48,233.19,233.18,13.59559401]
[1758125715302,34.82,233.19,233.18,13.59559401]
[1758125716090,26.66,233.21,233.19,13.59559401]
[1758125716300,34.82,233.19,233.18,13.59559401]
[1758125716675,34.8,233.19,233.18,13.59559401]
[1758125717485,34.8,233.19,233.15,13.59559401]
[1758125717681,34.8,233.19,233.18,13.59559401]
[1758125718800,34.8,233.19,233.15,1.56071113]
[1758125719003,0.66,233.18,233.14,0.06]
[1758125719386,26.0,233.16,233.14,0.06]
[1758125719586,35.4,233.15,233.14,0.06]
[1758125720796,39.68908428,233.15,233.14,0.06]
[1758125724316,42.32333379,233.15,233.13,0.06]
[1758125724496,1.07353838,233.14,233.13,0.06]
[1758125725086,1.73353838,233.14,233.13,0.06]
[1758125725310,35.32,233.14,233.13,0.06]
[1758125726408,39.60926825,233.14,233.13,0.06]
[1758125727784,42.02748658,233.14,233.13,0.06]
[1758125729488,73.10103385,233.14,233.13,0.06]
[1758125729689,38.46103385,233.14,233.13,0.06]
[1758125729890,73.06103385,233.14,233.13,0.06]
[1758125730085,38.46103385,233.14,233.13,0.06]
[1758125730289,71.98748658,233.14,233.13,0.06]
[1758125731010,37.38748658,233.14,233.13,0.06]
[1758125731516,71.96748658,233.14,233.13,0.06]
[1758125732108,37.38748658,233.14,233.13,0.06]
[1758125732496,71.94748658,233.14,233.13,0.06]
[1758125733090,71.92748658,233.14,233.13,0.06]
[1758125733506,37.38748658,233.14,233.13,0.06]
[1758125733805,36.72748658,233.14,233.13,0.06]
[1758125734007,71.24748658,233.14,233.13,0.06]
[1758125734809,71.93748658,233.14,233.13,0.06]
[1758125735913,69.49926825,233.14,233.13,0.06]
[1758125736114,71.93748658,233.14,233.13,0.06]
[1758125736413,71.22748658,233.14,233.13,0.06]
[1758125737208,36.72748658,233.14,233.13,0.06]
[1758125737416,68.78926825,233.14,233.13,0.06]
[1758125737924,71.22748658,233.14,233.13,0.06]
[1758125738317,26.0,233.05,232.99,0.038304]
[1758125738510,2.43821833,233.02,232.99,0.038304]
[1758125738697,34.84,233.02,232.99,0.038304]
[1758125739113,2.43821833,233.03,232.99,0.038304]
[1758125739419,34.84,233.02,232.99,0.038304]
[1758125739921,34.82,233.02,232.99,0.038304]
[1758125740310,39.11147712,233.02,232.99,0.038304]
[1758125740517,41.54969545,233.02,232.99,0.038304]
[1758125741227,41.54969545,233.02,233.01,0.98]
[1758125741612,6.72969545,233.02,233.01,0.98]
[1758125741919,44.919396,233.02,233.01,0.98]
[1758125742307,5.82791888,233.04,233.01,0.98]
[1758125742524,26.0,233.02,233.01,0.3]
[1758125742708,26.0,233.02,233.01,13.89559401]
[1758125742914,26.0,233.07,233.01,14.57559401]
[1758125743108,60.82,233.06,233.03,13.59559401]
[1758125743310,60.82,233.06,233.04,0.68]
[1758125743710,60.82,233.06,233.05,0.68]
[1758125744114,34.82,233.06,233.05,0.68]
[1758125744306,39.11074058,233.06,233.05,0.68]
[1758125744931,39.11074058,233.06,233.01,13.89559401]
[1758125744932,26.0,233.03,233.02,14.27559401]
[1758125745229,60.82,233.03,233.02,14.27559401]
[1758125745409,60.82,233.03,233.02,0.68]
[1758125745610,66.64791888,233.03,233.02,0.68]
[1758125746018,66.64791888,233.03,233.01,0.3]
[1758125746327,10.119396,233.02,233.01,0.98]
[1758125746906,66.64791888,233.03,233.01,0.98]
[1758125747106,31.82791888,233.03,233.01,0.98]
[1758125747332,34.78,233.02,233.01,14.57559401]
[1758125748017,36.11928094,233.03,233.01,14.57559401]
[1758125748215,34.78,233.02,233.01,14.57559401]
[1758125748427,40.60791888,233.02,233.01,13.89559401]
[1758125748732,4.29110059,233.05,233.02,13.59559401]
[1758125748910,34.76,233.04,233.03,14.27559401]
[1758125749324,40.58791888,233.04,233.03,13.59559401]
[1758125749639,26.0,233.02,233.01,0.3]
[1758125749839,60.76,233.02,233.01,0.3]
[1758125750745,65.05147712,233.02,233.01,0.3]
[1758125750946,70.879396,233.02,233.01,0.3]
[1758125751240,71.569396,233.02,233.01,0.3]
[1758125751443,70.879396,233.02,233.01,0.3]
[1758125751930,30.29147712,233.02,233.01,0.3]
[1758125752112,39.03147712,233.02,233.01,0.3]
[1758125752320,44.859396,233.02,233.01,0.3]
[1758125753137,39.03147712,233.02,233.01,0.3]
[1758125753344,44.859396,233.02,233.01,0.3]
[1758125754607,36.119396,233.02,233.01,0.3]
[1758125754838,44.819396,233.02,233.01,0.3]
[1758125755537,45.509396,233.02,233.01,0.3]
[1758125756533,30.29147712,233.02,233.01,0.3]
[1758125756738,70.799396,233.02,233.01,0.3]
[1758125757942,71.499396,233.02,233.01,0.3]
[1758125758353,36.119396,233.02,233.01,0.3]
[1758125758637,70.779396,233.02,233.01,0.36]
[1758125758840,30.29147712,233.02,233.01,1.05]
[1758125759045,70.759396,233.02,233.01,0.36]
[1758125759949,36.119396,233.02,233.01,0.36]
[1758125760136,70.759396,233.02,233.01,0.36]
[1758125760533,70.739396,233.02,233.01,0.36]
[1758125760942,71.439396,233.02,233.01,0.36]
[1758125761246,36.819396,233.02,233.01,0.36]
[1758125761447,71.419396,233.02,233.01,0.36]
[1758125762941,36.819396,233.02,233.01,0.36]
[1758125763244,101.399396,233.02,233.01,0.36]
[1758125763753,98.01288647,233.02,233.01,0.36]
[1758125764433,97.99288647,233.02,233.01,0.36]
[1758125765128,97.97288647,233.02,233.01,0.36]
[1758125767262,97.97288647,233.02,233.0,70.17508004]
[1758125767571,33.11140935,233.01,233.0,0.77549898]
[1758125767746,33.11140935,233.01,232.99,0.038304]
[1758125768057,36.96140935,233.0,232.99,0.038304]
[1758125768237,36.96140935,233.0,232.91,1.02]
[1758125768238,26.0,232.96,232.91,0.3]
[1758125768430,28.44140935,232.92,232.91,0.3]
[1758125768625,60.52,232.92,232.91,1.02]
[1758125768832,6.73472894,232.92,232.91,1.02]
[1758125769057,41.27472894,232.92,232.91,1.02]
[1758125770856,2.44140935,232.92,232.91,1.02]
[1758125771056,26.0,232.95,232.91,1.02]
[1758125771235,34.5,232.94,232.92,13.59559401]
[1758125771435,26.0,232.95,232.93,0.72]
[1758125771751,34.56,232.94,232.93,14.31559401]
[1758125772055,2.44140935,232.97,232.94,13.59559401]
[1758125772355,34.56,232.96,232.95,14.31559401]
[1758125772561,2.44140935,232.98,232.95,0.72]
[1758125772749,26.0,232.97,232.96,0.72]
[1758125772954,2.44140935,232.99,232.96,0.72]
[1758125773137,26.0,232.98,232.97,0.72]
[1758125773338,34.54,232.98,232.97,0.72]
[1758125773746,34.54,232.98,232.97,14.31559401]
[1758125774143,26.0,232.98,232.97,14.31559401]
[1758125774350,26.0,232.99,232.98,13.59559401]
[1758125774657,60.52,232.99,232.98,0.72]
[1758125775250,64.8120297,232.99,232.98,0.72]
[1758125775557,67.25343905,232.99,232.95,0.72]
[1758125775864,2.44140935,232.97,232.96,0.72]
[1758125776047,36.98140935,232.97,232.96,0.72]
[1758125776562,34.52,232.97,232.96,0.72]
[1758125777833,36.96140935,232.97,232.94,13.59559401]
[1758125778056,36.96140935,232.97,232.91,13.89559401]
[1758125778247,36.96140935,232.97,232.92,0.72]
[1758125778447,41.2539406,232.97,232.93,13.59559401]
[1758125778663,41.2539406,232.97,232.94,0.72]
[1758125779459,6.7339406,232.97,232.92,13.59559401]
[1758125779770,34.48,232.96,232.95,0.72]
[1758125780136,37.59140935,232.96,232.92,13.59559401]
[1758125780472,4.29313527,232.93,232.92,0.06]
[1758125780759,41.21454462,232.93,232.92,0.06]
[1758125782049,41.21454462,232.93,232.89,0.06]
[1758125782050,26.0,232.9,232.89,0.06]
[1758125782272,62.90140935,232.9,232.89,0.06]
[1758125782486,65.50368827,232.9,232.89,0.06]
[1758125782761,32.73509762,232.9,232.89,0.06]
[1758125782950,67.29509762,232.9,232.89,0.06]
[1758125783148,33.80967225,232.9,232.89,0.06]
[1758125783360,41.29509762,232.9,232.89,0.06]
[1758125783665,71.29509762,232.9,232.89,0.06]
[1758125783869,41.29509762,232.9,232.89,0.06]
[1758125784164,42.36968023,232.9,232.89,0.06]
[1758125784545,3.51599196,232.9,232.89,0.06]
[1758125784745,62.98140935,232.9,232.89,0.06]
[1758125785448,33.8096893,232.9,232.89,0.06]
[1758125785656,68.3496893,232.9,232.89,0.06]
[1758125786258,67.27509762,232.9,232.89,0.06]
[1758125786463,67.25509762,232.9,232.89,0.06]
[1758125786664,32.73509762,232.9,232.89,0.06]
[1758125787151,61.57460002,232.9,232.89,0.06]
[1758125787352,28.44140935,232.9,232.89,0.06]
[1758125787553,32.73509762,232.9,232.89,0.06]
[1758125787755,67.23509762,232.9,232.89,0.06]
[1758125788146,68.30969764,232.9,232.89,0.06]
[1758125788344,67.23509762,232.9,232.89,0.06]
[1758125788667,30.29368827,232.9,232.89,0.06]
[1758125788843,36.94140935,232.9,232.89,0.06]
[1758125789043,36.94140935,232.9,232.89,0.78]
[1758125789260,36.94140935,232.9,232.89,0.06]
[1758125789465,2.44140935,232.9,232.89,0.06]
[1758125789642,26.0,232.93,232.89,0.78]
[1758125789844,1.56344401,232.91,232.89,0.78]
[1758125790042,34.48,232.9,232.89,0.06]
[1758125790462,1.56344401,232.91,232.89,0.06]
[1758125790667,30.29313959,232.93,232.9,0.72]
[1758125790852,1.56344401,232.92,232.91,0.72]
[1758125791041,26.0,232.93,232.91,0.72]
[1758125791246,27.56344401,232.93,232.91,0.72]
[1758125791468,34.46,232.92,232.89,0.06]
[1758125791771,27.56344401,232.93,232.9,0.72]
[1758125791954,27.56344401,232.93,232.89,0.06]
[1758125792158,27.56344401,232.93,232.91,0.72]
[1758125792548,34.46,232.92,232.91,0.72]
[1758125793456,31.85659633,232.93,232.91,0.72]
[1758125793658,34.44,232.92,232.91,0.72]
[1758125794187,31.85659633,232.93,232.91,0.72]
[1758125794480,26.0,232.95,232.92,14.29559401]
[1758125794775,34.46,232.94,232.93,14.29559401]
[1758125795266,37.77787345,232.94,232.89,0.06]
[1758125795473,1.56344401,232.91,232.89,0.06]
[1758125795770,34.44,232.9,232.89,0.06]
[1758125796552,34.44,232.9,232.89,14.35559401]
[1758125796759,5.85673931,232.93,232.89,14.35559401]
[1758125797062,1.07453468,232.92,232.89,13.65559401]
[1758125797368,34.42,232.92,232.89,13.65559401]
[1758125797570,34.42,232.91,232.89,13.65559401]
[1758125798773,34.42,232.9,232.89,0.06]
[1758125800681,35.49461465,232.9,232.89,0.06]
[1758125800976,35.43461465,232.9,232.89,0.06]
[1758125801963,1.07461465,232.9,232.89,0.06]
[1758125802164,34.36,232.9,232.89,0.06]
[1758125802482,26.0,232.93,232.89,0.76]
[1758125802653,26.68,232.97,232.9,13.59559401]
[1758125802986,1.07442215,232.96,232.9,15.85903802]
[1758125803184,35.41442215,232.96,232.92,13.59559401]
[1758125803373,1.07442215,232.95,232.92,13.59559401]
[1758125804877,1.07442215,232.95,232.92,0.7]
[1758125805249,1.07442215,232.95,232.9,13.59559401]
[1758125805454,5.36719379,232.95,232.9,13.59559401]
[1758125805756,35.39442215,232.94,232.92,13.59559401]
[1758125805958,34.32,232.93,232.92,13.59559401]
[1758125806678,6.53585688,232.97,232.92,14.29559401]
[1758125806859,0.03,232.93,232.92,14.29559401]
[1758125807057,34.33,232.93,232.92,14.29559401]
[1758125807457,34.31,232.93,232.92,18.5889136]
[1758125807784,34.31,232.93,232.92,20.15235761]